Cogmind - Beta 14 @@@ ROGUE MODE // 2024.11.14 @ 13:58:32 Player: Fangrelle Result: Destroyed by L-31 Rogue with Katana Performance ------------- Evolutions (1) 500 Regions Visited (3) 600 Robots Destroyed (81) 405 Value Destroyed (2095) 2095 Prototype IDs (0) 0 Alien Tech Used (0) 0 Bonus (232) 232 TOTAL SCORE: 3832 Bonus ------- High Alert Combat Kills 179 Follower Combat Kills 74 Friendly Fire -21 Cogmind --------- Core Integrity 0/400 Matter 11/300 Energy 47/240 System Corruption 3% Temperature Warning (316) Movement Core (1800) Ox35 Location -9/Materials Parts ------- > --- POWER (1) -------- Nuclear Core > --- PROPULSION (2) --- (None) > --- UTILITY (2) ------ Huge Storage Unit Hardened Light Armor Plating > --- WEAPON (4) ------- Heavy Assault Rifle Heavy Assault Rifle Assault Cannon Grenade Launcher > --- INVENTORY (25) --- Cooling System Cooling System High-capacity Matter Pod (0) Improved Targeting Computer Improved Targeting Computer Improved Targeting Computer ECM Suite Hardened Light Armor Plating Hardened Light Armor Plating Hardened Light Armor Plating Shield Generator Shield Generator Hacking Suite Hacking Suite Assault Cannon Assault Cannon Peak State ------------ > --- POWER ------------ Reinforced Ion Engine > --- PROPULSION ------- Light Treads Light Treads > --- UTILITY ---------- Huge Storage Unit Hacking Suite > --- WEAPON ----------- Beam Rifle Assault Cannon Assault Cannon Assault Cannon > --- INVENTORY -------- Improved Ion Engine Nuclear Core Nuclear Core Nuclear Core Light Treads Heat Sink Heat Sink Cooling System ECM Suite Light Armor Plating Light Armor Plating Hardened Light Armor Plating Hardened Light Armor Plating Hardened Light Armor Plating Hardened Light Armor Plating Shield Generator Hacking Suite Hacking Suite Heavy Assault Rifle Assault Cannon Assault Cannon Assault Cannon Assault Cannon Grenade Launcher [Rating: 24] Favorites ----------- Power Ion Engine Engine Ion Engine Power Core Nuclear Core Propulsion Light Treads Treads Light Treads Leg Aluminum Leg Wheel Wheel Hover Unit Hover Unit Utility Huge Storage Unit Storage Huge Storage Unit Hackware Hacking Suite Protection Hardened Light Armor Plating Weapon Assault Cannon Energy Gun Beam Rifle Energy Cannon Light EM Pulse Cannon Ballistic Gun Light Assault Rifle Ballistic Cannon Assault Cannon Launcher Grenade Launcher Build | -11 -10 -10 -9 ------- Run | Yrd Mat Min Mat Slots Evolved 2 | . . . 2 Power . | . . . . Propulsion . | . . . . Utility . | . . . . Weapon 2 | . . . 2 Parts Attached 61 | . 11 10 40 Power 9 | . 1 3 5 Engine 6 | . 1 3 2 Core 3 | . . . 3 Reactor . | . . . . Propulsion 14 | . 2 3 9 Treads 8 | . 2 1 5 Leg 3 | . . . 3 Wheel 2 | . . 2 . Hover 1 | . . . 1 Flight . | . . . . Utility 3 | . 2 . 1 Device . | . . . . Storage 1 | . 1 . . Processor . | . . . . Hackware 1 | . 1 . . Protection 1 | . . . 1 Artifact . | . . . . Weapon 35 | . 6 4 25 Energy Gun 12 | . 2 3 7 Energy Cannon 2 | . . . 2 Ballistic Gun 7 | . 2 . 5 Ballistic Cannon 8 | . . . 8 Launcher 6 | . 2 1 3 Special Weapon . | . . . . Impact Weapon . | . . . . Slashing Weapon . | . . . . Piercing Weapon . | . . . . Special Melee Weapon . | . . . . Unidentified Prototypes . | . . . . Corrupted Parts 1 | . . . 1 System Corruption 1 | . . . 1 Parts Lost 21 | . 2 4 15 Power 4 | . 1 1 2 Propulsion 6 | . . 2 4 Utility . | . . . . Weapon 11 | . 1 1 9 Highest Loss Streak 6 | . 1 2 6 To Critical Strikes . | . . . . Average Slot Usage (%) 92 | . 90 95 91 Engine 8 | . 8 10 8 Core 1 | . . . 2 Treads 15 | . 23 14 13 Leg 2 | . 4 . 3 Wheel 3 | . . 12 . Storage 12 | . 16 14 11 Hackware 11 | . 9 14 11 Energy Gun 19 | . 19 21 18 Ballistic Gun 3 | . 7 5 1 Ballistic Cannon 10 | . . . 19 Peak Build Rating 24 | . 10 11 24 Average Rating 14 | . 8 9 20 On Entrance 7 | 6 6 8 10 Naked Turns . | . . . . Heaviest Build 108 | 12 95 91 108 Greatest Support 40 | 20 40 40 40 Greatest Overweight (x) 34 | . 2 4 34 Average Overweight (x) 2 | . 1 2 3 Largest Inventory Capacity 25 | . 25 25 25 Average Capacity 24 | . 21 25 25 Most Carried 25 | . 10 13 25 Average Carried 14 | . 8 7 20 Final Capacity 25 | 8 25 25 25 Final Carried 16 | 6 9 5 16 Class Distribution -------------------- 53% | Mutant 32% | Scavenger-Gunner 12% | Gunner Dominant Class ---------------- Mutant | -10/Materials Mutant | -10/Mines Scavenger-Gunner | -9/Materials Resources | -11 -10 -10 -9 ----------- Run | Yrd Mat Min Mat Matter Collected 1560 | 193 143 207 1017 Remotely . | . . . . Salvage Created 2487 | . 635 289 1563 Parts 168 | . 31 14 123 Haulers Intercepted 2 | . . . 2 Recyclers Shooed . | . . . . Parts Field Recycled . | . . . . Retrieved Matter . | . . . . Parts Self-Destructed . | . . . . Prevented . | . . . . Kills | -11 -10 -10 -9 ------- Run | Yrd Mat Min Mat Combat Hostiles Destroyed 66 | . 12 11 43 Guns 34 | . 8 6 20 Cannons 18 | . . . 18 AOE 14 | . 4 5 5 Classes Destroyed 13 | . 6 1 6 Worker 6 | . 1 1 4 Builder 4 | . 1 . 3 Hauler 2 | . . . 2 Recycler 2 | . 2 . . Operator 5 | . 1 . 4 Watcher 5 | . . . 5 Swarmer 11 | . 3 . 8 Grunt 38 | . 9 5 24 Brawler 1 | . . . 1 Duelist 1 | . . . 1 Protector 1 | . . . 1 Sentry 8 | . . . 8 Assembled 6 | . . 6 . Best Kill Streak 7 | . 4 6 7 Combat Bots Only 5 | . 3 5 5 Max Kills in Single Turn 4 | . 3 2 4 Gunslinging . | . . . . Exploded 2 | . 2 2 2 Melee . | . . . . Uniques/NPCs Destroyed . | . . . . Combat | -11 -10 -10 -9 -------- Run | Yrd Mat Min Mat Hostile Shots Fired 346 | . 47 48 251 Missed 99 | . 16 21 62 Damage Taken 3306 | . 404 519 2383 Core 550 | . 41 106 403 Absorbed by Shields . | . . . . Core Remaining (%) 70 | 100 . 41 . Volleys Fired 223 | . 54 35 134 Largest 4 | . 2 2 4 Hottest 209 | . 105 105 209 Shots Fired 519 | . 104 67 348 Gun 352 | . 100 62 190 Cannon 152 | . . . 152 Launcher 15 | . 4 5 6 Special . | . . . . Kinetic 219 | . 33 20 166 Thermal 210 | . 20 27 163 Explosive 15 | . 4 5 6 Electromagnetic 75 | . 47 15 13 Robot Hit Streak 12 | . 6 7 12 Robot Miss Streak 8 | . 4 4 8 Penetration Max . | . . . . Secondary Targets 1 | . . . 1 Max Gunslinging Chain 1 | . . . 1 Shots Hit Robots 287 | . 55 38 194 Core Hits 165 | . 30 28 107 Critical Kills . | . . . . Critical Parts Destroyed . | . . . . Critical Strikes 12 | . 3 . 9 Burn 9 | . 3 . 6 Blast 3 | . . . 3 Melee Attacks . | . . . . Impact . | . . . . Slashing . | . . . . Piercing . | . . . . Sneak Attacks . | . . . . Combat Hostiles . | . . . . Follow-up Attacks . | . . . . Damage Inflicted 6074 | . 1061 832 4181 Guns 2837 | . 729 442 1666 Cannons 1851 | . . . 1851 Explosions 1361 | . 332 365 664 Melee . | . . . . Ramming 25 | . . 25 . Kinetic 2188 | . 125 99 1964 Thermal 2124 | . 403 237 1484 Explosive 1141 | . 151 365 625 Electromagnetic 596 | . 382 106 108 Impact . | . . . . Slashing . | . . . . Piercing . | . . . . Highest Corruption 4 | . . 4 3 Average Corruption 2 | . . 3 2 Corruption Purged . | . . . . Corruption Blocked . | . . . . Effects 56 | . . 24 32 Message Errors 18 | . . 10 8 Matter Fused 11 | . . 3 8 Heat Flow Errors 6 | . . 2 4 Energy Discharges 4 | . . 2 2 Parts Fused 1 | . . 1 . Data Loss (minor) 10 | . . 4 6 Data Loss (major) 4 | . . 2 2 Misfires 2 | . . . 2 Overload Shots . | . . . . Overflow Damage 174 | . . 16 158 Projectiles 158 | . . . 158 Explosions 16 | . . 16 . Melee . | . . . . Knockbacks 14 | . . . 14 Impact . | . . . . Kinetic 14 | . . . 14 Secondary . | . . . . Self-Inflicted Damage 106 | . 47 12 47 Shots 4 | . 2 . 2 Rammed 2 | . . 2 . Targets Rammed 2 | . . 2 . Kicked . | . . . . Crushed . | . . . . Highest Temperature 602 | . 294 223 602 Average Temperature 126 | . 54 58 154 Received Heat Transfer 1338 | . 195 207 936 Effects 26 | . . 2 24 Shutdowns 6 | . . . 6 Energy Bleed 2 | . . . 2 Interference 10 | . . 2 8 Matter Decay 3 | . . . 3 Short Circuit 2 | . . . 2 Damage (minor) 2 | . . . 2 Damage (major) 1 | . . . 1 Siege Activations . | . . . . Robots Corrupted . | . . . . Combat Hostiles . | . . . . Parts Fried . | . . . . Impact Corruptions . | . . . . Robots Melted . | . . . . Combat Hostiles . | . . . . Parts Melted 5 | . . . 5 Heat Transferred 5199 | . 1040 558 3601 Parts Sabotaged . | . . . . Parts Stolen . | . . . . Parts Stripped . | . . . . Power Chain Reactions 4 | . 3 . 1 Alert | -11 -10 -10 -9 ------- Run | Yrd Mat Min Mat Peak Influence 856 | . 155 70 856 Initial 24 | . . 24 . Average 201 | . 84 11 344 Maximum Alert Level 3 | . . . 3 Low Security (%) 64 | . 100 100 32 Level 1 16 | . . . 32 Level 2 10 | . . . 19 Level 3 7 | . . . 15 Level 4 . | . . . . Level 5 . | . . . . High Security . | . . . . Max Security . | . . . . Squads Dispatched 14 | . 5 . 9 Investigation 5 | . 3 . 2 Extermination . | . . . . Reinforcement 7 | . 2 . 5 Assault 2 | . . . 2 Garrison . | . . . . Intercept . | . . . . Searches Triggered . | . . . . Construction Impeded 1 | . . . 1 Haulers Reinforced . | . . . . Active Scanning Responses . | . . . . Cargo Convoy Interrupts . | . . . . Stealth | -11 -10 -10 -9 --------- Run | Yrd Mat Min Mat Distress Signals 4 | . 1 . 3 Communications Jammed . | . . . . Distress Signals . | . . . . Times Spotted 124 | . 30 17 77 Peak Tracking Total 7 | . 4 6 7 Tactical Retreats 14 | . 1 . 13 Traps | -11 -10 -10 -9 ------- Run | Yrd Mat Min Mat Traps Triggered 3 | . 1 . 2 Indirectly . | . . . . Trap Hack Attempts . | . . . . Triggered . | . . . . Disarmed . | . . . . Reprogrammed . | . . . . Reused 1 | . . 1 . Traps Extracted . | . . . . Installed 4 | . . 4 . Triggered 1 | . . 1 . Most Traps Carried 4 | . . 4 . Machines | -11 -10 -10 -9 ---------- Run | Yrd Mat Min Mat Machines Disabled 6 | . 3 . 3 Max in Single Turn 1 | . 1 . 1 Machines Repaired . | . . . . Machines Dismantled . | . . . . Machines Sabotaged . | . . . . Overloaded Fab Kills . | . . . . Hacking | -11 -10 -10 -9 --------- Run | Yrd Mat Min Mat Machines Accessed 16 | . 7 . 9 Terminals 12 | . 5 . 7 Fabricators . | . . . . Repair Stations . | . . . . Recycling Units 3 | . 2 . 1 Scanalyzers 1 | . . . 1 Garrison Access . | . . . . Total Hacks 53 | . 22 . 31 Successful 37 | . 15 . 22 Failed 16 | . 7 . 9 Catastrophic 1 | . . . 1 Database Lockouts . | . . . . Manual 36 | . 17 . 19 Terminals 34 | . 15 . 19 Fabricators . | . . . . Repair Stations . | . . . . Recycling Units 10 | . 7 . 3 Scanalyzers 9 | . . . 9 Garrison Access . | . . . . Terminal Hacks 1 | . . . 1 Unreport Threat 1 | . . . 1 Fabricator Hacks . | . . . . Repair Station Hacks . | . . . . Recycling Unit Hacks 6 | . 4 . 2 Report Inventory 3 | . 2 . 1 Retrieve Components 3 | . 2 . 1 Scanalyzer 9 | . . . 9 Insert Component 3 | . . . 3 Analyze 6 | . . . 6 Garrison Access Hacks . | . . . . Unauthorized Hacks 21 | . 11 . 10 Terminals 18 | . 9 . 9 Assimilate 6 | . 2 . 4 Botnet 9 | . 5 . 4 Operators 2 | . 1 . 1 Skim 1 | . 1 . . Fabricators . | . . . . Repair Stations . | . . . . Recycling Units 3 | . 2 . 1 Tunnel 3 | . 2 . 1 Scanalyzers . | . . . . Garrison Access . | . . . . Data Cores Recovered . | . . . . Used . | . . . . Hacking Detections 15 | . 6 . 9 Full Trace Events 1 | . . . 1 Feedback Events . | . . . . Feedback Blocked . | . . . . Robot Schematics Acquired . | . . . . Robots Built . | . . . . Authchips . | . . . . Time . | . . . . Total Robot Build Rating . | . . . . Part Schematics Acquired 3 | . . . 3 Parts Built . | . . . . Authchips . | . . . . Time . | . . . . Total Part Build Rating . | . . . . Parts Repaired . | . . . . Time . | . . . . Parts Recycled . | . . . . Recycled Matter . | . . . . Retrieved Matter . | . . . . Retrieved Components 25 | . 19 . 6 Parts Scanalyzed 3 | . . . 3 Part Schematics Acquired 3 | . . . 3 Parts Damaged . | . . . . Bothacking | -11 -10 -10 -9 ------------ Run | Yrd Mat Min Mat Used RIF Installer . | . . . . Robots Hacked . | . . . . Non-combat . | . . . . Combat . | . . . . Robot Hacks Applied . | . . . . Relay Couplers Released . | . . . . Fabnet Peak Effective % . | . . . . Robots Rewired . | . . . . Allies Hacked . | . . . . Hacks Repelled . | . . . . Allies | -11 -10 -10 -9 -------- Run | Yrd Mat Min Mat Total Allies 4 | . 1 3 . Largest Group 3 | . 1 3 1 Highest-Rated Group 40 | . 9 40 13 Highest-Rated Ally 16 | . 9 16 13 Total Orders 4 | . 1 2 1 STAY 3 | . 1 1 1 FOLLOW 1 | . . 1 . Ally Attacks 50 | . . 49 1 Total Damage 391 | . . 378 13 Kills 6 | . . 6 . Allies Corrupted . | . . . . Allies Melted . | . . . . Intel | -11 -10 -10 -9 ------- Run | Yrd Mat Min Mat Robot Analysis Total . | . . . . Derelict Logs Recovered 1 | . . 1 . Drone Launches . | . . . . Drone Recoveries . | . . . . Exploration | -11 -10 -10 -9 ------------- Run | Yrd Mat Min Mat Turns Passed 9256 | . 1844 2540 4872 Spaces Moved 2630 | 1 672 862 1095 Core 16 | . . . 16 Treads 1776 | . 456 448 872 Legs 424 | 1 216 . 207 Wheels 414 | . . 414 . Hover . | . . . . Flight . | . . . . Fastest Speed 120 | 120 120 135 320 Average Speed 314 | 120 242 272 392 Slowest Speed 1750 | 120 320 480 1750 Overloaded Moves . | . . . . Propulsion Burnouts . | . . . . Robots Hopped . | . . . . Cave-ins Triggered . | . . . . Exploration Rate (%) 68 | 1 98 99 74 Regions Visited 3 Branch Regions 1 Pre-discovered Areas 3 | . 2 . 1 Known Exits Taken . | . . . . Unknown Exits Taken 3 | 1 1 1 . Scrap Searched 1 | . . 1 . Spaces Dug 8 | . 8 . . Terrain Destroyed 119 | . 30 17 72 Melee . | . . . . Projectile 31 | . . . 31 AOE 88 | . 30 17 41 Terrain Rammed . | . . . . Walls Destroyed . | . . . . Machines Disabled . | . . . . Actions | -11 -10 -10 -9 --------- Run | Yrd Mat Min Mat Total 3192 | . 786 995 1411 Wait 169 | . 45 67 57 Move 2627 | . 671 861 1095 Hop . | . . . . Pick Up 57 | . 3 8 46 Fast Attach 17 | . 2 . 15 Attach 23 | . 2 5 16 Detach 4 | . 1 . 3 Swap 21 | . 7 5 9 Drop 45 | . 1 8 36 Fire 223 | . 54 35 134 Melee . | . . . . Ram 2 | . . 2 . Kick . | . . . . Crush . | . . . . Escape Stasis . | . . . . Rewire . | . . . . Trap 4 | . . 4 . Miscellaneous . | . . . . Route ------- -11/Scrapyard -10/Materials (discovered 4 exits: *Mat x3 / [*Min]) -10/Mines (discovered 3 exits: *Mat x2 / [*Sub]) -9/Materials (discovered 4 exits: *Mat x3 / [*Min]) History --------- Turn | Location | Event 1 | -11/Scrapyard | Discovered new exit (range 0) 1 | -11/Scrapyard | Entered Materials 118 | -10/Materials | Discovered new exit (range 16) 305 | -10/Materials | Build established: Mutant 565 | -10/Materials | Discovered new exit (range 3) 1046 | -10/Materials | Discovered new exit (range 6) 1415 | -10/Materials | Discovered new exit (range 15) 1845 | -10/Materials | Entered Mines 1988 | -10/Mines | Learned location of 1 exit from Materials 2235 | -10/Mines | Found a hidden stash of uninstalled traps 2575 | -10/Mines | Discovered new exit (range 4) 2882 | -10/Mines | Assembled infested the area 2887 | -10/Mines | Assisted by a Guerilla fighting off Assembled 2906 | -10/Mines | Assisted by bots powering up and referring to "LRC-V3" 3052 | -10/Mines | Discovered new exit (range 6) 3329 | -10/Mines | Core integrity fell below 50% 4075 | -10/Mines | Discovered new exit (range 6) 4385 | -10/Mines | Entered Materials 4385 | -9/Materials | Accompanied by 1 ally 4385 | -9/Materials | Evolved 2 slots: Weapon x2 4386 | -9/Materials | Identified exit to Materials 5508 | -9/Materials | Build established: Scavenger-Gunner 5766 | -9/Materials | Discovered new exit (range 7) 5956 | -9/Materials | Discovered exit to Materials (range 15) 6843 | -9/Materials | Discovered exit to Materials (range 10) 7985 | -9/Materials | First assault squad dispatched 8389 | -9/Materials | Core integrity fell below 50% 8485 | -9/Materials | Build established: Gunner 9249 | -9/Materials | Core integrity fell below 20% 9257 | -9/Materials | Destroyed by L-31 Rogue with Katana Last Messages --------------- 09244_ Hvy. EM Pulse Gun destroyed. 09245_ K-01 Serf collects debris. 09246_ Critical hit (Burn: +37). 09246_ Nuclear Core destroyed. 09247_ Lgt. Treads destroyed. 09247_ Matter Pump disabled. 09247_ K-01 Serf destroyed. 09249_ U-05 Engineer lays Concrete. 09250_ R-06 Scavenger collects Wheel. 09250_ U-05 Engineer lays Concrete. 09250_ Assault Cannon destroyed. 09250_ Discarded Hacking Suite. 09252_ U-05 Engineer lays Concrete. 09252_ Spread Laser destroyed. 09253_ U-05 Engineer lays Concrete. 09254_ M-13 Machinist repairs G-47 Trooper. 09254_ T-07 Excavator is excavating. 09255_ U-05 Engineer lays Concrete. 09256_ M-13 Machinist repairs Lgt. Nuclear Core. 09257_ U-05 Engineer lays Concrete. Map ----- +----------------------------------------------------+ | #?????????????#^ #??????????????????????? | | #/#######?????????????# #??????????????????????? | | # #???????????????????# #??????????????????????? | | # #???????????????????# #??????????????????????? | | # #???????????????????# ???????????????????????? | | # #???????????????????? ???????????????????????? | | # #??????????????????????????????????????????????? | | # #?????###?????##???????????????????????????????? | | # ##????# ??? #???????????????????????????????? | | # ##????# ??? #???????????????????????????????? | | # ###???# """ #???????????????????????????????? | | ##???# """ #???????????????????????????????? | | ##???# """ #???????????????????????????????? | | #????# """ #???????????????????????????????? | | !#????# #???????????????????????????????? | | ]]#??### "T" #???????????????????????????????? | | %## # #???????????????????????????????? | | ##########+#############+###### ???????????? | | % r ???????????? | | =% ???????????? | | "" """ ""????????????? | | ####### ########### m "" """ ""????????????? | | ???#### ## ####u g ""g """ """ ?????????? | | ??????# # t # % g ????????? | | ####### #?? l k ????????? | | # #??# # g @ ????????? | | # #??######## %%###"Y"#######????????????? | | # #?????????#% #??"""#??????????????????? | | "" + #??????####"/########??????????????????? | | S"" # #??????# #?????????????????????? | | "" # < #??????# #?????????????????????? | | ####### #??????# """ #?????????????????????? | | ??????#####??????# """"" #?????????????????????? | | ?????????????????# """"" #?????????????????????? | | ?????????????????# """"" #?????????????????????? | | ?????????????????# """ #?????????????????????? | | ?????????????????# ?? #?????????????????????? | | ?????????????????##??????###?????????????????????? | | ?????????????????????????????????????????????????? | | ?????????????????????????????????????????????????? | | | | | | | | | | | | | | | | | | | | | +----------------------------------------------------+ Best States ------------- Heat Dissipation 28 Energy Generation 14 Energy Capacity 265 Matter Stores 300 Matter Capacity 300 Sight Range 16 Terrain Scan Density 10 Evasion (%) 55 Recoil Reduction 2 Offensive Hacking 10 Item Schematics ----------------- Hacking Suite | -9/Materials | Scanalyzed Imp. Targeting Computer | -9/Materials | Scanalyzed Hvy. Assault Rifle | -9/Materials | Scanalyzed Robot Schematics ------------------ None Fabricated ------------ Nothing Alien Tech Used ----------------- None Achievements -------------- None Challenges ------------ None Game ------ Seed AlloyLargeMantle Manual? 0 Play Time 00:32:08 Cumulative 73.2 hours Start 2024.11.14 @ 12:27:59 End 2024.11.14 @ 13:58:32 Sessions 3 Manual Loads 0 Difficulty Rogue Special Mode None Game No. 124 Rogue 124 Adventurer 0 Explorer 0 Win Type - Total 0 Types 0/0/0/0/0/0/0/0/0 Lore% 41 Gallery% 35 Achievement% 34 Wizard Run 0 Options --------- Layout 0 ASCII 0 Keyboard 0 Movement Mouse Keybinds 0 Fullscreen 1 Font 24/Smallcaps Map View 91x25 Zoom Use 95% Tactical HUD 1 Map Filters NONE Filters NONE Steam 1 RUN: 004b4266-0a27-40b0-9806-2c10283172b3